[Event "*** Titled Tuesday 3|2 Blitz"]
[Site "Chess.com"]
[Date "2015.10.06"]
[Round "6"]
[White "talaicito"]
[Black "3f32"]
[Result "0-1"]
[WhiteElo "1967"]
[BlackElo "2268"]
[TimeControl "180+2"]
[EndTime "12:13:58 PDT"]
[Termination "3f32 won by resignation"]

1. e4 {[%clk 0:03:01.9]} 1... e5 {[%clk 0:02:02.5]} 2. Nf3 {[%clk 0:03:01.5]}
2... Nc6 {[%clk 0:02:01.7]} 3. Bb5 {[%clk 0:03:02.2]} 3... a6 {[%clk 0:02:00.2]}
4. Ba4 {[%clk 0:03:03.7]} 4... Nf6 {[%clk 0:01:59.7]} 5. O-O {[%clk 0:03:05.1]}
5... Nxe4 {[%clk 0:01:55.5]} 6. d4 {[%clk 0:03:04.2]} 6... b5 {[%clk 0:01:53.9]}
7. Bb3 {[%clk 0:03:05.2]} 7... d5 {[%clk 0:01:55.2]} 8. dxe5 {[%clk 0:03:05.7]}
8... Be6 {[%clk 0:01:55.6]} 9. c3 {[%clk 0:03:06.9]} 9... Bc5 {[%clk 0:01:55.3]}
10. Nbd2 {[%clk 0:03:07.4]} 10... O-O {[%clk 0:01:54.8]} 11. Bc2 {[%clk
0:03:01.3]} 11... Nxf2 {[%clk 0:01:47.5]} 12. Rxf2 {[%clk 0:02:59.9]} 12... f6
{[%clk 0:01:49.1]} 13. exf6 {[%clk 0:02:40]} 13... Bxf2+ {[%clk 0:01:47.5]} 14.
Kxf2 {[%clk 0:02:40.3]} 14... Qxf6 {[%clk 0:01:47.6]} 15. Kg1 {[%clk 0:02:26.2]}
15... Rae8 {[%clk 0:01:47.6]} 16. Nb3 {[%clk 0:02:16]} 16... Ne5 {[%clk
0:01:46.6]} 17. Nbd4 {[%clk 0:02:10.2]} 17... Bg4 {[%clk 0:01:46]} 18. Bg5
{[%clk 0:02:03.4]} 18... Bxf3 {[%clk 0:01:35.8]} 19. Bxf6 {[%clk 0:01:57.7]}
19... Bxd1 {[%clk 0:01:35.3]} 20. Bxe5 {[%clk 0:01:51.4]} 20... Bxc2 {[%clk
0:01:35.8]} 21. Bxc7 {[%clk 0:01:52]} 21... Bd3 {[%clk 0:01:33.6]} 22. a4 {[%clk
0:01:45.5]} 22... bxa4 {[%clk 0:01:33.4]} 23. h3 {[%clk 0:01:37.7]} 23... Bb5
{[%clk 0:01:34]} 24. Rd1 {[%clk 0:01:35]} 24... Rf7 {[%clk 0:01:30.6]} 25. Bg3
{[%clk 0:01:26.4]} 25... Bc4 {[%clk 0:01:27.6]} 26. Ra1 {[%clk 0:01:25.4]} 26...
Bb5 {[%clk 0:01:25.8]} 27. Bd6 {[%clk 0:01:18.3]} 27... Re3 {[%clk 0:01:22.2]}
28. Bc5 {[%clk 0:01:09.9]} 28... Rd3 {[%clk 0:01:20]} 29. Nf3 {[%clk 0:01:03.8]}
29... Rfxf3 {[%clk 0:01:13]} 30. gxf3 {[%clk 0:01:03]} 30... Rxf3 {[%clk
0:01:14.9]} 31. Kg2 {[%clk 0:01:02.1]} 31... Rd3 {[%clk 0:01:16.5]} 32. Ba3
{[%clk 0:01:01.6]} 32... Bc6 {[%clk 0:01:10.2]} 33. Kh2 {[%clk 0:00:58.2]} 33...
Bd7 {[%clk 0:01:09.7]} 34. Kg2 {[%clk 0:00:43.6]} 34... Bxh3+ {[%clk 0:01:09.4]}
35. Kf2 {[%clk 0:00:44.5]} 35... Bf5 {[%clk 0:01:09.9]} 36. Re1 {[%clk
0:00:43.4]} 36... Be4 {[%clk 0:01:09.8]} 37. Rg1 {[%clk 0:00:40.8]} 37... h5
{[%clk 0:01:08.5]} 38. Rg5 {[%clk 0:00:40.4]} 38... h4 {[%clk 0:01:09.4]} 39.
Rh5 {[%clk 0:00:40.1]} 39... h3 {[%clk 0:01:10.8]} 40. Kg1 {[%clk 0:00:40.7]}
40... Bg2 {[%clk 0:01:07.9]} 41. Kh2 {[%clk 0:00:40.9]} 41... Kf7 {[%clk
0:01:07.8]} 42. Rh4 {[%clk 0:00:39.8]} 42... Rd2 {[%clk 0:01:08.3]} 43. Bd6
{[%clk 0:00:32.1]} 43... g5 {[%clk 0:01:08.3]} 44. Rxa4 {[%clk 0:00:32.5]} 44...
Rxb2 {[%clk 0:01:04.6]} 45. Rxa6 {[%clk 0:00:32.7]} 45... Bf1+ {[%clk 0:01:05]}
46. Kg3 {[%clk 0:00:32.5]} 46... Bxa6 {[%clk 0:01:06.9]} 0-1

[Event "*** Titled Tuesday 3|2 Blitz"]
[Site "Chess.com"]
[Date "2015.10.06"]
[Round "6"]
[White "Makalexa"]
[Black "Nutflush"]
[Result "0-1"]
[WhiteElo "1801"]
[BlackElo "1943"]
[TimeControl "180+2"]
[EndTime "12:14:11 PDT"]
[Termination "Nutflush won by resignation"]

1. e4 {[%clk 0:02:52.1]} 1... c5 {[%clk 0:03:00.2]} 2. Nf3 {[%clk 0:02:52.7]}
2... Nc6 {[%clk 0:03:01.5]} 3. d4 {[%clk 0:02:53.3]} 3... cxd4 {[%clk
0:03:03.4]} 4. Nxd4 {[%clk 0:02:47.8]} 4... Nf6 {[%clk 0:03:04.7]} 5. Nc3 {[%clk
0:02:47.4]} 5... e5 {[%clk 0:03:05.9]} 6. Ndb5 {[%clk 0:02:47.9]} 6... d6 {[%clk
0:03:06.4]} 7. Bg5 {[%clk 0:02:42.4]} 7... a6 {[%clk 0:03:07.5]} 8. Na3 {[%clk
0:02:41.6]} 8... b5 {[%clk 0:03:09.4]} 9. Nd5 {[%clk 0:02:42.4]} 9... Be7 {[%clk
0:03:10.4]} 10. Bxf6 {[%clk 0:02:43.6]} 10... Bxf6 {[%clk 0:03:11.3]} 11. c4
{[%clk 0:02:45]} 11... Ne7 {[%clk 0:03:10.8]} 12. cxb5 {[%clk 0:02:34.6]} 12...
O-O {[%clk 0:03:09.3]} 13. Nxf6+ {[%clk 0:02:34.3]} 13... gxf6 {[%clk
0:03:11.2]} 14. Qd2 {[%clk 0:02:34.7]} 14... f5 {[%clk 0:02:53.5]} 15. Bd3
{[%clk 0:02:34.3]} 15... d5 {[%clk 0:02:50.1]} 16. Qg5+ {[%clk 0:02:34.2]} 16...
Kh8 {[%clk 0:02:49]} 17. Qf6+ {[%clk 0:02:34.6]} 17... Kg8 {[%clk 0:02:47.4]}
18. exf5 {[%clk 0:02:34.6]} 18... e4 {[%clk 0:02:47.5]} 19. Qg5+ {[%clk
0:02:34.4]} 19... Kh8 {[%clk 0:02:43.8]} 20. Qf6+ {[%clk 0:02:32.9]} 20... Kg8
{[%clk 0:02:43.3]} 21. Qg5+ {[%clk 0:02:10]} 21... Kh8 {[%clk 0:02:38.4]} 22. f6
{[%clk 0:02:10.6]} 22... Nf5 {[%clk 0:02:19.8]} 23. Be2 {[%clk 0:01:13.4]} 23...
Rg8 {[%clk 0:02:16.6]} 24. Qh5 {[%clk 0:01:14.1]} 24... Qxf6 {[%clk 0:02:09.3]}
25. g4 {[%clk 0:01:11.7]} 25... Nd4 {[%clk 0:02:07.2]} 26. Bd1 {[%clk
0:00:52.7]} 26... Nf3+ {[%clk 0:01:12.4]} 27. Bxf3 {[%clk 0:00:49.3]} 27... Qxf3
{[%clk 0:01:14.3]} 28. Qe5+ {[%clk 0:00:49.7]} 28... Rg7 {[%clk 0:01:13]} 29.
Kd2 {[%clk 0:00:45.3]} 29... Qxf2+ {[%clk 0:01:11.2]} 30. Kc3 {[%clk 0:00:43.3]}
30... Be6 {[%clk 0:01:00.7]} 31. Rac1 {[%clk 0:00:34.6]} 31... d4+ {[%clk
0:00:59.6]} 32. Kb4 {[%clk 0:00:18]} 32... Qxb2+ {[%clk 0:00:58.7]} 33. Kc5
{[%clk 0:00:18.4]} 33... Qxa3+ {[%clk 0:00:57.8]} 34. Kb6 {[%clk 0:00:16]} 34...
Qf8 {[%clk 0:00:51.9]} 35. Rc7 {[%clk 0:00:15.1]} 35... Qb8+ {[%clk 0:00:50.9]}
36. Kc6 {[%clk 0:00:14.7]} 36... Qxb5+ {[%clk 0:00:44.4]} 0-1

[Event "*** Titled Tuesday 3|2 Blitz"]
[Site "Chess.com"]
[Date "2015.10.06"]
[Round "6"]
[White "JustKid"]
[Black "IMRosen"]
[Result "0-1"]
[WhiteElo "2132"]
[BlackElo "2235"]
[TimeControl "180+2"]
[EndTime "12:14:18 PDT"]
[Termination "IMRosen won by resignation"]

1. d4 {[%clk 0:03:01.9]} 1... d5 {[%clk 0:02:43.4]} 2. c4 {[%clk 0:03:02.9]}
2... e6 {[%clk 0:02:44.9]} 3. Nf3 {[%clk 0:03:03.7]} 3... Nf6 {[%clk 0:02:40]}
4. g3 {[%clk 0:03:04.7]} 4... dxc4 {[%clk 0:02:38.8]} 5. Bg2 {[%clk 0:03:05.6]}
5... Bb4+ {[%clk 0:02:39.6]} 6. Nbd2 {[%clk 0:03:05.1]} 6... b5 {[%clk
0:02:38.7]} 7. Qc2 {[%clk 0:03:03.9]} 7... Bb7 {[%clk 0:02:26.7]} 8. a4 {[%clk
0:03:02.8]} 8... c6 {[%clk 0:02:24.9]} 9. O-O {[%clk 0:03:02.3]} 9... O-O {[%clk
0:02:24.9]} 10. e4 {[%clk 0:02:55.4]} 10... a5 {[%clk 0:02:17.6]} 11. e5 {[%clk
0:02:45.9]} 11... Nd5 {[%clk 0:02:10.9]} 12. Ne4 {[%clk 0:02:43.3]} 12... Nd7
{[%clk 0:02:04.5]} 13. Neg5 {[%clk 0:02:40.6]} 13... g6 {[%clk 0:02:00.2]} 14.
h4 {[%clk 0:02:39.3]} 14... Re8 {[%clk 0:01:53.5]} 15. h5 {[%clk 0:02:34.9]}
15... Bf8 {[%clk 0:01:50.7]} 16. Bh3 {[%clk 0:01:49.3]} 16... b4 {[%clk
0:01:26.2]} 17. Kg2 {[%clk 0:01:36]} 17... c5 {[%clk 0:01:26.6]} 18. Rh1 {[%clk
0:01:31.9]} 18... cxd4 {[%clk 0:01:24.1]} 19. hxg6 {[%clk 0:00:57.2]} 19... hxg6
{[%clk 0:01:23.6]} 20. Bxe6 {[%clk 0:00:54.8]} 20... Rxe6 {[%clk 0:01:18.4]} 21.
Nxe6 {[%clk 0:00:55.6]} 21... Qb6 {[%clk 0:00:53.7]} 22. Nxf8 {[%clk 0:00:47]}
22... Rxf8 {[%clk 0:00:54.1]} 23. Qd2 {[%clk 0:00:36.7]} 23... Ne3+ {[%clk
0:00:22.3]} 24. fxe3 {[%clk 0:00:37.7]} 24... Nxe5 {[%clk 0:00:23.7]} 25. e4
{[%clk 0:00:23.9]} 25... Bxe4 {[%clk 0:00:22.7]} 26. Rf1 {[%clk 0:00:14.3]}
26... Nxf3 {[%clk 0:00:22.2]} 27. Rxf3 {[%clk 0:00:15.5]} 27... Re8 {[%clk
0:00:17]} 28. Qf4 {[%clk 0:00:14.4]} 28... Bxf3+ {[%clk 0:00:12.8]} 29. Qxf3
{[%clk 0:00:16.3]} 29... d3 {[%clk 0:00:14.3]} 30. Bh6 {[%clk 0:00:15]} 30...
Re2+ {[%clk 0:00:13.6]} 31. Kh3 {[%clk 0:00:15]} 31... Qe6+ {[%clk 0:00:15]} 32.
g4 {[%clk 0:00:14.9]} 32... Qe5 {[%clk 0:00:08.8]} 33. Bf4 {[%clk 0:00:14.3]}
33... Qh8+ {[%clk 0:00:10.1]} 0-1

[Event "*** Titled Tuesday 3|2 Blitz"]
[Site "Chess.com"]
[Date "2015.10.06"]
[Round "6"]
[White "Trendle"]
[Black "Mugzyyy"]
[Result "1-0"]
[WhiteElo "2338"]
[BlackElo "2488"]
[TimeControl "180+2"]
[EndTime "12:14:19 PDT"]
[Termination "Trendle won by checkmate"]

1. e4 {[%clk 0:02:59.1]} 1... c5 {[%clk 0:02:59.1]} 2. Nc3 {[%clk 0:02:59]} 2...
Nc6 {[%clk 0:02:53.1]} 3. Bb5 {[%clk 0:02:57.9]} 3... Nd4 {[%clk 0:02:54.4]} 4.
Bc4 {[%clk 0:02:58.8]} 4... Rb8 {[%clk 0:02:53.8]} 5. a4 {[%clk 0:02:56.3]} 5...
a6 {[%clk 0:02:54.6]} 6. Nge2 {[%clk 0:02:47.8]} 6... b5 {[%clk 0:02:54.3]} 7.
axb5 {[%clk 0:02:49.1]} 7... axb5 {[%clk 0:02:55.2]} 8. Ba2 {[%clk 0:02:50.1]}
8... b4 {[%clk 0:02:53.8]} 9. Nd5 {[%clk 0:02:30.8]} 9... e6 {[%clk 0:02:53.7]}
10. Ne3 {[%clk 0:02:16.6]} 10... Nf6 {[%clk 0:02:50.4]} 11. e5 {[%clk
0:02:08.1]} 11... Ng8 {[%clk 0:02:38.3]} 12. O-O {[%clk 0:02:06]} 12... Ne7
{[%clk 0:02:38.2]} 13. Nxd4 {[%clk 0:02:03.2]} 13... cxd4 {[%clk 0:02:39.2]} 14.
Nc4 {[%clk 0:02:04.1]} 14... Ng6 {[%clk 0:02:35.6]} 15. d3 {[%clk 0:01:55.7]}
15... Be7 {[%clk 0:02:30.2]} 16. Qh5 {[%clk 0:01:46.1]} 16... O-O {[%clk
0:02:23.7]} 17. f4 {[%clk 0:01:43]} 17... d5 {[%clk 0:02:14.9]} 18. exd6 {[%clk
0:01:41]} 18... Bxd6 {[%clk 0:02:15.9]} 19. Nxd6 {[%clk 0:01:37.8]} 19... Qxd6
{[%clk 0:02:15.4]} 20. Bd2 {[%clk 0:01:38.4]} 20... Bb7 {[%clk 0:02:04.6]} 21.
Bb3 {[%clk 0:01:33.5]} 21... Ne7 {[%clk 0:02:00.7]} 22. Qe5 {[%clk 0:01:13.6]}
22... Qxe5 {[%clk 0:01:57.7]} 23. fxe5 {[%clk 0:01:14.4]} 23... Bd5 {[%clk
0:01:56.7]} 24. Bg5 {[%clk 0:01:09.2]} 24... Ng6 {[%clk 0:01:42.8]} 25. Bxd5
{[%clk 0:00:50.6]} 25... exd5 {[%clk 0:01:43.7]} 26. Ra5 {[%clk 0:00:51.5]}
26... Rfc8 {[%clk 0:01:34.9]} 27. Rf2 {[%clk 0:00:50.7]} 27... Nf8 {[%clk
0:01:29.4]} 28. Rxd5 {[%clk 0:00:48.6]} 28... Ne6 {[%clk 0:01:30.7]} 29. Be7
{[%clk 0:00:48.7]} 29... b3 {[%clk 0:01:30.8]} 30. cxb3 {[%clk 0:00:45.2]} 30...
Rxb3 {[%clk 0:01:32.3]} 31. Rd2 {[%clk 0:00:32.3]} 31... h5 {[%clk 0:01:20.5]}
32. g3 {[%clk 0:00:32.8]} 32... Rc1+ {[%clk 0:01:18.6]} 33. Kg2 {[%clk 0:00:33]}
33... Re1 {[%clk 0:01:19.2]} 34. Ba3 {[%clk 0:00:15.2]} 34... Re3 {[%clk
0:01:20]} 35. Rd7 {[%clk 0:00:11.8]} 35... h4 {[%clk 0:01:13.4]} 36. Rf2 {[%clk
0:00:12.4]} 36... h3+ {[%clk 0:01:14.8]} 37. Kxh3 {[%clk 0:00:12.6]} 37... Rexd3
{[%clk 0:01:14.8]} 38. Kg4 {[%clk 0:00:14]} 38... Re3 {[%clk 0:01:09]} 39. Rfxf7
{[%clk 0:00:14.3]} 39... Re4+ {[%clk 0:01:08.3]} 40. Kf5 {[%clk 0:00:14]} 40...
Rbe3 {[%clk 0:01:00.8]} 41. Kxe6 {[%clk 0:00:11.2]} 41... Rxe5+ {[%clk 0:01:02]}
42. Kd6 {[%clk 0:00:12.7]} 42... d3 {[%clk 0:01:03.3]} 43. Rxg7+ {[%clk
0:00:12.2]} 43... Kf8 {[%clk 0:01:03.6]} 44. Kc6+ {[%clk 0:00:12]} 44... Ke8
{[%clk 0:01:04.8]} 45. Rg8# {[%clk 0:00:13.3]} 1-0

[Event "*** Titled Tuesday 3|2 Blitz"]
[Site "Chess.com"]
[Date "2015.10.06"]
[Round "6"]
[White "Dlugy"]
[Black "Canonkasparov"]
[Result "0-1"]
[WhiteElo "2551"]
[BlackElo "2393"]
[TimeControl "180+2"]
[EndTime "12:14:31 PDT"]
[Termination "Canonkasparov won by checkmate"]

1. d4 {[%clk 0:03:01.9]} 1... Nf6 {[%clk 0:02:59.8]} 2. Bf4 {[%clk 0:03:03.2]}
2... d5 {[%clk 0:02:57.6]} 3. e3 {[%clk 0:03:03.8]} 3... c5 {[%clk 0:02:57.3]}
4. dxc5 {[%clk 0:03:04.4]} 4... Nc6 {[%clk 0:02:54.9]} 5. Bb5 {[%clk 0:03:04.8]}
5... g6 {[%clk 0:02:45.9]} 6. Nf3 {[%clk 0:03:04.3]} 6... Bg7 {[%clk 0:02:46.2]}
7. O-O {[%clk 0:03:03.2]} 7... O-O {[%clk 0:02:46.4]} 8. Bxc6 {[%clk 0:03:04]}
8... bxc6 {[%clk 0:02:46.6]} 9. Be5 {[%clk 0:03:05.6]} 9... Ba6 {[%clk
0:02:37.9]} 10. Re1 {[%clk 0:03:06.4]} 10... Ne4 {[%clk 0:02:34.3]} 11. Bxg7
{[%clk 0:03:06.9]} 11... Kxg7 {[%clk 0:02:36.2]} 12. b4 {[%clk 0:03:02.5]} 12...
Rb8 {[%clk 0:02:31]} 13. a3 {[%clk 0:03:01.6]} 13... f6 {[%clk 0:02:28.4]} 14.
Nfd2 {[%clk 0:02:59.2]} 14... Ng5 {[%clk 0:02:21.2]} 15. Nf3 {[%clk 0:02:40.7]}
15... Ne4 {[%clk 0:02:21]} 16. Nd4 {[%clk 0:02:41.9]} 16... Qd7 {[%clk
0:02:18.4]} 17. f3 {[%clk 0:02:37.9]} 17... Ng5 {[%clk 0:02:18]} 18. Nd2 {[%clk
0:02:30.3]} 18... e5 {[%clk 0:02:17.7]} 19. N4b3 {[%clk 0:02:31.9]} 19... Rbd8
{[%clk 0:02:14.4]} 20. c3 {[%clk 0:02:32.5]} 20... h5 {[%clk 0:02:06.7]} 21. f4
{[%clk 0:02:17.3]} 21... Nf7 {[%clk 0:01:56.9]} 22. Nf3 {[%clk 0:02:17.6]} 22...
Rde8 {[%clk 0:01:49.4]} 23. Qd2 {[%clk 0:02:18]} 23... Qc7 {[%clk 0:01:42.6]}
24. Na5 {[%clk 0:02:17.6]} 24... Nh6 {[%clk 0:01:39.9]} 25. h3 {[%clk
0:02:17.6]} 25... Nf5 {[%clk 0:01:39.7]} 26. fxe5 {[%clk 0:02:17.5]} 26... fxe5
{[%clk 0:01:39.8]} 27. Rad1 {[%clk 0:01:59.7]} 27... Ng3 {[%clk 0:01:39.5]} 28.
c4 {[%clk 0:01:51.1]} 28... Ne4 {[%clk 0:01:36.1]} 29. Qc2 {[%clk 0:01:48.8]}
29... Bc8 {[%clk 0:01:24.7]} 30. cxd5 {[%clk 0:01:49.4]} 30... cxd5 {[%clk
0:01:21.4]} 31. Rxd5 {[%clk 0:01:49.8]} 31... Bf5 {[%clk 0:01:17.2]} 32. Nh4
{[%clk 0:01:50.9]} 32... Qe7 {[%clk 0:01:07]} 33. Nxf5+ {[%clk 0:01:51.6]} 33...
gxf5 {[%clk 0:01:07.5]} 34. Red1 {[%clk 0:01:51.4]} 34... Qh4 {[%clk 0:01:07.2]}
35. Nc4 {[%clk 0:01:48.5]} 35... Qg3 {[%clk 0:01:02.4]} 36. c6 {[%clk
0:01:48.5]} 36... Re6 {[%clk 0:00:58.2]} 37. Rd7+ {[%clk 0:01:40.8]} 37... Kh6
{[%clk 0:00:57.4]} 38. c7 {[%clk 0:01:29.8]} 38... Rc8 {[%clk 0:00:50]} 39. b5
{[%clk 0:01:24.9]} 39... Rg6 {[%clk 0:00:49.6]} 40. Nd6 {[%clk 0:00:25.4]} 40...
Qxe3+ {[%clk 0:00:47.6]} 41. Kh1 {[%clk 0:00:22.6]} 41... Nf2+ {[%clk
0:00:46.1]} 42. Kg1 {[%clk 0:00:19.5]} 42... Nxd1+ {[%clk 0:00:42.8]} 43. Kh1
{[%clk 0:00:20]} 43... Nf2+ {[%clk 0:00:43]} 44. Kh2 {[%clk 0:00:20.9]} 44...
Qg3+ {[%clk 0:00:42.5]} 45. Kg1 {[%clk 0:00:21.8]} 45... Qxg2# {[%clk 0:00:43]}
0-1

[Event "*** Titled Tuesday 3|2 Blitz"]
[Site "Chess.com"]
[Date "2015.10.06"]
[Round "6"]
[White "Bab3s"]
[Black "HubertKnott"]
[Result "1-0"]
[WhiteElo "2117"]
[BlackElo "1997"]
[TimeControl "180+2"]
[EndTime "12:14:31 PDT"]
[Termination "Bab3s won by checkmate"]

1. e4 {[%clk 0:03:01.9]} 1... e5 {[%clk 0:03:00]} 2. Nf3 {[%clk 0:03:02.6]} 2...
Nc6 {[%clk 0:03:01.1]} 3. d4 {[%clk 0:03:02.7]} 3... exd4 {[%clk 0:03:01.6]} 4.
Bc4 {[%clk 0:03:03.8]} 4... Bc5 {[%clk 0:02:59.4]} 5. c3 {[%clk 0:02:43.2]} 5...
Nf6 {[%clk 0:02:58.9]} 6. cxd4 {[%clk 0:02:43.5]} 6... Bb4+ {[%clk 0:02:59.2]}
7. Bd2 {[%clk 0:02:44.6]} 7... Bxd2+ {[%clk 0:02:59.9]} 8. Nbxd2 {[%clk
0:02:44.8]} 8... d5 {[%clk 0:03:01]} 9. exd5 {[%clk 0:02:45.4]} 9... Nxd5 {[%clk
0:03:02]} 10. O-O {[%clk 0:02:46]} 10... O-O {[%clk 0:03:02.3]} 11. h3 {[%clk
0:02:38.9]} 11... Nf4 {[%clk 0:02:56.2]} 12. Ne4 {[%clk 0:02:31.9]} 12... Nd5
{[%clk 0:02:08.6]} 13. Rc1 {[%clk 0:02:26.1]} 13... h6 {[%clk 0:02:04.2]} 14. a3
{[%clk 0:02:18.2]} 14... Be6 {[%clk 0:01:59.6]} 15. Nc5 {[%clk 0:02:17.1]} 15...
Bc8 {[%clk 0:01:56.1]} 16. Qb3 {[%clk 0:01:57.8]} 16... Na5 {[%clk 0:01:55.8]}
17. Qa4 {[%clk 0:01:49.5]} 17... Nxc4 {[%clk 0:01:53.9]} 18. Qxc4 {[%clk
0:01:51.4]} 18... c6 {[%clk 0:01:51.2]} 19. b4 {[%clk 0:01:51.5]} 19... Qb6
{[%clk 0:01:46.8]} 20. Rfe1 {[%clk 0:01:46.1]} 20... a5 {[%clk 0:01:32.5]} 21.
Rb1 {[%clk 0:01:33.9]} 21... axb4 {[%clk 0:01:32.7]} 22. axb4 {[%clk 0:01:35.8]}
22... Ra3 {[%clk 0:01:32]} 23. b5 {[%clk 0:01:24.4]} 23... Rc3 {[%clk
0:01:18.5]} 24. Qa2 {[%clk 0:01:14.8]} 24... Bf5 {[%clk 0:01:11.8]} 25. Rb2
{[%clk 0:01:04]} 25... Qd8 {[%clk 0:00:44.6]} 26. Nxb7 {[%clk 0:00:51.7]} 26...
Qb6 {[%clk 0:00:45]} 27. Nc5 {[%clk 0:00:27.5]} 27... Rxc5 {[%clk 0:00:31.4]}
28. dxc5 {[%clk 0:00:26.4]} 28... Qxc5 {[%clk 0:00:32.6]} 29. bxc6 {[%clk
0:00:23.9]} 29... Qxc6 {[%clk 0:00:31.9]} 30. Rd2 {[%clk 0:00:15.1]} 30... Nf4
{[%clk 0:00:26.6]} 31. Qb3 {[%clk 0:00:06.1]} 31... Rc8 {[%clk 0:00:25.9]} 32.
Qe3 {[%clk 0:00:06.1]} 32... Ne6 {[%clk 0:00:25.7]} 33. Nd4 {[%clk 0:00:06.4]}
33... Nxd4 {[%clk 0:00:25.9]} 34. Qxd4 {[%clk 0:00:07.5]} 34... Qg6 {[%clk
0:00:26.3]} 35. Re3 {[%clk 0:00:06.5]} 35... Qc6 {[%clk 0:00:23.8]} 36. Rg3
{[%clk 0:00:06.7]} 36... Qc1+ {[%clk 0:00:23.6]} 37. Kh2 {[%clk 0:00:07.3]}
37... Qc7 {[%clk 0:00:24.5]} 38. Qxg7# {[%clk 0:00:07.5]} 1-0

[Event "*** Titled Tuesday 3|2 Blitz"]
[Site "Chess.com"]
[Date "2015.10.06"]
[Round "6"]
[White "oggy1984"]
[Black "LADIESGET2KNOWME"]
[Result "0-1"]
[WhiteElo "2368"]
[BlackElo "2270"]
[TimeControl "180+2"]
[EndTime "12:14:55 PDT"]
[Termination "LADIESGET2KNOWME won by resignation"]

1. d4 {[%clk 0:03:00.6]} 1... Nf6 {[%clk 0:03:00.6]} 2. c4 {[%clk 0:02:59.3]}
2... g6 {[%clk 0:03:01.8]} 3. Nc3 {[%clk 0:02:59.5]} 3... Bg7 {[%clk 0:03:03.3]}
4. e4 {[%clk 0:03:00.1]} 4... d6 {[%clk 0:03:04.9]} 5. f3 {[%clk 0:03:01]} 5...
O-O {[%clk 0:03:06.5]} 6. Be3 {[%clk 0:03:02.3]} 6... e5 {[%clk 0:03:08]} 7.
Nge2 {[%clk 0:03:03.1]} 7... exd4 {[%clk 0:03:08.3]} 8. Nxd4 {[%clk 0:03:03.2]}
8... Re8 {[%clk 0:03:10.2]} 9. Qd2 {[%clk 0:02:58.8]} 9... c6 {[%clk 0:03:11.2]}
10. Be2 {[%clk 0:02:41.7]} 10... d5 {[%clk 0:03:12.4]} 11. exd5 {[%clk
0:02:42.2]} 11... cxd5 {[%clk 0:03:14.3]} 12. c5 {[%clk 0:02:42.2]} 12... Bf8
{[%clk 0:03:15.1]} 13. Nc2 {[%clk 0:02:15]} 13... Nc6 {[%clk 0:03:15.2]} 14.
O-O-O {[%clk 0:02:12.7]} 14... Qa5 {[%clk 0:03:03.3]} 15. Kb1 {[%clk 0:01:58]}
15... Bf5 {[%clk 0:03:03.8]} 16. Bd3 {[%clk 0:01:42.4]} 16... Bxd3 {[%clk
0:02:39.1]} 17. Qxd3 {[%clk 0:01:44.3]} 17... Bxc5 {[%clk 0:02:37]} 18. Bxc5
{[%clk 0:01:19]} 18... Qxc5 {[%clk 0:02:38.9]} 19. Nxd5 {[%clk 0:01:19.7]} 19...
Nxd5 {[%clk 0:02:38.3]} 20. Qxd5 {[%clk 0:01:20.3]} 20... Qxd5 {[%clk
0:02:34.5]} 21. Rxd5 {[%clk 0:01:22.2]} 21... Re2 {[%clk 0:02:35.8]} 22. Rd7
{[%clk 0:01:02.1]} 22... Rc8 {[%clk 0:02:27.7]} 23. Na3 {[%clk 0:00:39.3]} 23...
Na5 {[%clk 0:02:06.4]} 24. g4 {[%clk 0:00:33.1]} 24... Rf2 {[%clk 0:02:00.8]}
25. Rd3 {[%clk 0:00:21.3]} 25... Re8 {[%clk 0:02:01.6]} 26. Nc2 {[%clk
0:00:15.3]} 26... Ree2 {[%clk 0:02:00.6]} 27. Rc1 {[%clk 0:00:15.5]} 27... Rxh2
{[%clk 0:01:58.4]} 28. Rd8+ {[%clk 0:00:14.2]} 28... Kg7 {[%clk 0:01:59.1]} 29.
Rb8 {[%clk 0:00:14.7]} 29... Ref2 {[%clk 0:01:50.8]} 30. b4 {[%clk 0:00:14.6]}
30... Nc4 {[%clk 0:01:50.1]} 31. Rxb7 {[%clk 0:00:13.4]} 31... Rxc2 {[%clk
0:01:50.6]} 32. Rxc2 {[%clk 0:00:13.5]} 32... Na3+ {[%clk 0:01:51.9]} 33. Ka1
{[%clk 0:00:12]} 33... Nxc2+ {[%clk 0:01:51.5]} 34. Kb1 {[%clk 0:00:12.4]} 34...
Na3+ {[%clk 0:01:43.3]} 35. Ka1 {[%clk 0:00:12.7]} 35... h5 {[%clk 0:01:36.9]}
36. gxh5 {[%clk 0:00:11]} 36... gxh5 {[%clk 0:01:38.8]} 37. Rxa7 {[%clk
0:00:12.3]} 37... Nc2+ {[%clk 0:01:39.5]} 38. Kb1 {[%clk 0:00:12.3]} 38... Nxb4
{[%clk 0:01:40.6]} 39. a4 {[%clk 0:00:12.4]} 39... h4 {[%clk 0:01:40.2]} 40. Rb7
{[%clk 0:00:13.2]} 40... Nc6 {[%clk 0:01:35.5]} 41. Rb6 {[%clk 0:00:11.3]} 41...
Na5 {[%clk 0:01:33.6]} 42. Rb5 {[%clk 0:00:12.2]} 42... Nc4 {[%clk 0:01:34.5]}
43. Rc5 {[%clk 0:00:10.9]} 43... Na3+ {[%clk 0:01:35.2]} 44. Ka1 {[%clk
0:00:11.1]} 44... h3 {[%clk 0:01:35.3]} 45. a5 {[%clk 0:00:11.3]} 45... Rg2
{[%clk 0:01:02.5]} 46. Rh5 {[%clk 0:00:09.3]} 46... h2 {[%clk 0:01:03.4]} 47. a6
{[%clk 0:00:09.7]} 47... Rg1+ {[%clk 0:01:04.2]} 48. Ka2 {[%clk 0:00:10.4]}
48... h1=Q {[%clk 0:01:05.6]} 49. Rxh1 {[%clk 0:00:09.7]} 49... Rxh1 {[%clk
0:01:07.5]} 50. a7 {[%clk 0:00:11.1]} 50... Rh8 {[%clk 0:01:07.2]} 0-1